bitfinex/quotes_SOLUSD_20220101
["timestamp","ask_amount","ask_price","bid_price","bid_amount"]
[1641072462148,1.85137941,178.49,178.39,96.392]
[1641072462847,0.26,178.49,178.39,96.392]
[1641072463049,1.85137941,178.5,178.39,96.392]
[1641072463748,10.25737941,178.5,178.39,96.392]
[1641072463949,10.75737941,178.5,178.39,97.6352]
[1641072464349,1.59137941,178.49,178.39,97.6352]
[1641072464573,1.85137941,178.49,178.39,97.6352]
[1641072464873,2.35137941,178.49,178.39,97.6352]
[1641072465074,10.75807941,178.49,178.39,97.6352]
[1641072465674,1.59137941,178.48,178.39,97.6352]
[1641072465874,2.09137941,178.48,178.39,97.6352]
[1641072466075,2.35137941,178.48,178.39,97.6352]
[1641072467577,8.4076,178.47,178.39,97.6352]
[1641072467977,9.1676,178.47,178.39,97.6352]
[1641072470487,10.75897941,178.47,178.39,97.6352]
[1641072470985,10.75897941,178.47,178.39,96.79437214]
[1641072471785,10.49897941,178.47,178.39,96.79437214]
[1641072472384,10.49897941,178.47,178.39,8.33]
[1641072472385,26.96144486,178.46,178.39,8.33]
[1641072472585,8.4092,178.43,178.32,8.33]
[1641072472989,8.9092,178.43,178.32,8.33]
[1641072473289,1.42669368,178.42,178.25,8.33]
[1641072473488,8.33,178.41,178.23,8.4145]
[1641072473688,8.4148,178.32,178.23,8.4145]
[1641072473888,8.9148,178.32,178.23,8.4145]
[1641072474088,9.1748,178.32,178.23,8.4145]
[1641072474489,9.1748,178.32,178.22,8.33]
[1641072475693,9.1748,178.32,178.22,16.7453]
[1641072479298,8.6748,178.32,178.22,16.7453]
[1641072480599,0.26,178.32,178.22,16.7453]
[1641072480794,0.26,178.32,178.22,18.17199368]
[1641072481004,8.6734,178.34,178.22,16.7453]
[1641072481695,9.1734,178.34,178.22,16.7453]
[1641072482498,8.4134,178.34,178.22,16.7453]
[1641072482700,8.9134,178.34,178.22,16.7453]
[1641072482896,8.4134,178.34,178.22,18.17199368]
[1641072483099,10.00377941,178.36,178.22,18.17199368]
[1641072483297,1.59137941,178.36,178.22,18.17199368]
[1641072483496,2.09137941,178.36,178.22,18.17199368]
[1641072483701,7.43765116,178.38,178.22,18.17199368]
[1641072483897,8.19765116,178.38,178.22,18.17199368]
[1641072484097,8.4145,178.31,178.22,16.7453]
[1641072484502,8.6745,178.31,178.22,16.7453]
[1641072485702,0.26,178.31,178.22,16.7453]
[1641072486100,9.1739,178.33,178.22,16.7453]
[1641072486302,8.6739,178.33,178.22,16.7453]
[1641072486504,9.1739,178.33,178.22,16.7453]
[1641072490102,24.60550078,178.32,178.22,16.7453]
[1641072490304,8.4156,178.29,178.22,16.7453]
[1641072490504,8.6756,178.29,178.22,16.7453]
[1641072491902,0.26,178.29,178.22,16.7453]
[1641072492104,1.4616,178.32,178.22,16.7453]
[1641072492305,1.7016,178.32,178.22,16.7453]
[1641072492505,1.9616,178.32,178.22,16.7453]
[1641072492705,1.9616,178.32,178.22,16.2453]
[1641072492906,8.4153,178.3,178.22,16.2453]
[1641072493105,0.26,178.3,178.22,16.2453]
[1641072493310,0.76,178.3,178.22,16.2453]
[1641072493508,0.5,178.3,178.22,16.2453]
[1641072493909,1.9616,178.32,178.22,16.2453]
[1641072494108,1.4616,178.32,178.22,16.2453]
[1641072494311,1.9616,178.32,178.22,16.2453]
[1641072494608,8.4154,178.29,178.22,16.2453]
[1641072494809,1.7016,178.32,178.22,16.2453]
[1641072495210,1.2016,178.32,178.22,16.2453]
[1641072495609,8.4149,178.3,178.22,16.2453]
[1641072496008,8.6749,178.3,178.22,16.2453]
[1641072496408,8.6749,178.3,178.22,7.83]
[1641072496409,9.1749,178.3,178.22,7.83]
[1641072496609,9.1749,178.3,178.22,6.919]
[1641072497011,9.1749,178.3,178.19,9.6414]
[1641072497609,9.1749,178.3,178.19,9.1414]
[1641072498640,9.1749,178.3,178.19,17.5579]
[1641072500644,10.76627941,178.3,178.19,17.5579]
[1641072500844,11.72897941,178.3,178.19,17.5579]
[1641072501046,11.22897941,178.3,178.19,17.5579]
[1641072501244,10.00627941,178.3,178.19,17.5579]
[1641072501743,1.59137941,178.3,178.19,17.5579]
[1641072501945,1.59137941,178.31,178.19,17.5579]
[1641072502745,76.8953,178.33,178.19,17.5579]
[1641072502944,77.3953,178.33,178.19,17.5579]
[1641072503145,75.698,178.33,178.19,17.5579]
[1641072503346,8.4138,178.33,178.19,17.5579]
[1641072503549,8.4138,178.33,178.19,19.24459368]
[1641072504345,8.9138,178.33,178.19,19.24459368]
[1641072504545,9.1738,178.33,178.19,19.24459368]
[1641072504948,8.6738,178.33,178.19,19.24459368]
[1641072507448,9.1738,178.33,178.19,19.24459368]
[1641072508051,8.6738,178.33,178.19,19.24459368]
[1641072508552,8.6738,178.33,178.2,104.13]
[1641072508753,8.6738,178.33,178.25,8.4138]
[1641072509051,8.6738,178.33,178.26,8.33]
[1641072510754,8.6738,178.33,178.26,16.7437]
[1641072523192,8.6738,178.33,178.26,8.33]
[1641072523394,9.1738,178.33,178.24,8.4142]
[1641072523592,9.1738,178.33,178.22,8.33]
[1641072524394,1.216,178.32,178.22,8.33]
[1641072524593,8.4155,178.29,178.22,16.7452]
[1641072525094,8.6755,178.29,178.22,16.7452]
[1641072525593,9.1755,178.29,178.22,8.33]
[1641072526594,9.1755,178.29,178.2,8.4162]
[1641072527295,9.1755,178.29,178.2,16.7462]
[1641072527696,9.1755,178.29,178.19,1.2969]
[1641072527903,9.1755,178.29,178.18,84.293]
[1641072528796,1.2745,178.28,178.18,84.293]
[1641072528999,8.4174,178.25,178.18,84.293]
[1641072529398,9.1774,178.25,178.18,84.293]
[1641072529601,8.6774,178.25,178.18,84.293]
[1641072531002,8.6774,178.25,178.18,92.623]
[1641072532401,8.6774,178.25,178.18,16.7471]
[1641072532801,9.1774,178.25,178.18,16.7471]
[1641072533302,8.6774,178.25,178.18,16.7471]
[1641072535602,8.4171,178.26,178.18,16.7471]
[1641072535903,1.2745,178.28,178.18,16.7471]
[1641072537003,1.5345,178.28,178.18,16.7471]
[1641072537404,2.0345,178.28,178.18,16.7471]
[1641072539108,1.5345,178.28,178.18,16.7471]
[1641072540610,9.9512,178.28,178.18,16.7471]
[1641072541007,10.4512,178.28,178.18,16.7471]
[1641072541412,1.5345,178.28,178.18,16.7471]
[1641072541610,2.0345,178.28,178.18,16.7471]
[1641072543617,10.4512,178.28,178.18,16.7471]
[1641072554456,16.30036754,178.28,178.18,16.7471]
[1641072557158,16.30036754,178.28,178.18,8.33]
[1641072557657,10.00927941,178.26,178.18,8.33]
[1641072557857,10.50927941,178.26,178.18,8.33]
[1641072558061,10.76927941,178.26,178.18,8.33]
[1641072558257,9.1779,178.26,178.18,8.33]
[1641072559461,1.59137941,178.27,178.18,8.33]
[1641072559658,1.59137941,178.27,178.18,16.7475]
[1641072560258,1.59137941,178.28,178.18,120.8775]
[1641072560861,1.59137941,178.3,178.18,120.8775]
[1641072561061,1.59137941,178.3,178.19,1.2601]
[1641072561264,1.59137941,178.3,178.23,8.4148]
[1641072561560,1.59137941,178.3,178.23,16.7448]
[1641072561961,1.85137941,178.3,178.23,16.7448]
[1641072564265,0.26,178.3,178.23,16.7448]
[1641072564665,3.07827941,178.31,178.23,16.7448]
[1641072567266,3.57827941,178.31,178.22,8.4157]
[1641072567868,3.57827941,178.31,178.21,1.254]
[1641072568069,1.59137941,178.29,178.21,1.254]
[1641072568268,1.59137941,178.29,178.21,9.6701]
[1641072568571,1.85137941,178.29,178.21,8.4161]
[1641072568770,2.35137941,178.29,178.21,8.4161]
[1641072569569,10.76747941,178.29,178.21,8.4161]
[1641072570172,10.26747941,178.29,178.21,8.4161]
[1641072570373,10.76747941,178.29,178.21,8.4161]
[1641072570572,10.76747941,178.29,178.2,87.0618]
[1641072570772,10.76747941,178.29,178.2,95.4783]
[1641072572975,10.26747941,178.29,178.2,95.4783]
[1641072573175,1.85137941,178.29,178.2,95.4783]
[1641072573976,0.26,178.29,178.2,95.4783]
[1641072574178,3.57827941,178.31,178.2,96.7541]
[1641072574577,11.99387941,178.31,178.2,96.7541]
[1641072574777,1.59137941,178.3,178.2,96.7541]
[1641072574982,1.85137941,178.3,178.2,96.7541]
[1641072576477,1.3256,178.29,178.2,96.7541]
[1641072576877,1.5856,178.29,178.2,96.7541]
[1641072582383,10.5017,178.29,178.2,96.7541]
[1641072582583,10.0017,178.29,178.2,96.7541]
[1641072582785,10.5017,178.29,178.2,96.7541]
[1641072582982,10.0017,178.29,178.2,96.7541]
[1641072583183,10.5017,178.29,178.2,96.7541]
[1641072585609,12.09307941,178.29,178.2,96.7541]
[1641072586210,12.09307941,178.29,178.2,18.0223]
[1641072586510,12.09307941,178.29,178.16,8.33]
[1641072586809,8.4181,178.25,178.17,8.33]
[1641072587011,8.6781,178.25,178.17,8.33]
[1641072587209,9.1781,178.25,178.17,8.33]
[1641072588209,10.4296,178.25,178.17,8.33]
[1641072589910,10.4296,178.25,178.17,16.748]
[1641072590110,12.02097941,178.25,178.17,16.748]
[1641072590710,12.02097941,178.25,178.17,8.33]
[1641072591210,12.02097941,178.25,178.16,1.2503]
[1641072592015,8.4191,178.23,178.16,1.2503]
[1641072592416,9.1791,178.23,178.16,1.2503]
[1641072593421,10.4249,178.23,178.16,1.2503]
[1641072594519,10.4249,178.23,178.14,88.3418]
[1641072594722,10.4249,178.23,178.14,79.9224]
[1641072594920,9.9249,178.23,178.14,79.9224]
[1641072595120,10.4249,178.23,178.14,79.9224]
[1641072595820,10.4249,178.23,178.14,88.2524]
[1641072596021,10.4249,178.23,178.12,1.2143]
[1641072596223,12.01627941,178.23,178.1,8.33]
[1641072596823,1.59137941,178.2,178.1,9.5561]
[1641072597024,1.85137941,178.2,178.1,9.5561]
[1641072597224,2.35137941,178.2,178.1,9.5561]
[1641072597422,0.76,178.2,178.1,9.5561]
[1641072597825,8.4209,178.2,178.1,17.9774]
[1641072598026,1.59137941,178.2,178.1,17.9774]
[1641072598224,1.59137941,178.2,178.1,19.40409368]
[1641072599024,1.59137941,178.2,178.12,104.13]
[1641072599226,1.59137941,178.23,178.18,8.4171]
[1641072599426,1.59137941,178.23,178.19,8.33]
[1641072599730,1.59137941,178.25,178.19,8.33]
[1641072600529,1.59137941,178.25,178.19,16.7469]
[1641072601428,1.59137941,178.28,178.19,8.33]
[1641072601827,10.50847941,178.28,178.19,16.747]
[1641072602027,1.59137941,178.25,178.19,16.747]
[1641072602429,1.85137941,178.25,178.19,16.747]
[1641072604734,1.85137941,178.25,178.19,8.33]
[1641072605129,1.85137941,178.25,178.18,8.33]
[1641072605531,1.59137941,178.24,178.18,8.33]
[1641072606132,1.85137941,178.24,178.18,8.33]
[1641072606435,0.26,178.24,178.18,8.33]
[1641072606932,3.62767941,178.28,178.18,8.33]
[1641072607132,8.4177,178.27,178.18,16.7475]
[1641072607531,9.1777,178.27,178.18,16.7475]
[1641072609036,9.1777,178.27,178.18,8.33]
[1641072609836,1.59137941,178.24,178.18,8.33]
[1641072610036,1.85137941,178.24,178.18,8.33]
[1641072610336,2.35137941,178.24,178.18,8.33]
[1641072610763,1.59137941,178.24,178.18,8.33]
[1641072610962,1.59137941,178.24,178.18,16.7474]
[1641072611163,1.59137941,178.24,178.18,18.17409368]
[1641072611362,1.59137941,178.24,178.18,16.7474]
[1641072612263,1.59137941,178.28,178.18,16.7474]
[1641072612466,0.26,178.24,178.18,16.7474]
[1641072612663,1.85137941,178.28,178.18,16.7474]
[1641072613063,1.85137941,178.28,178.18,17.9888]
[1641072617065,2.35137941,178.28,178.18,17.9888]
[1641072617465,1.59137941,178.27,178.18,17.9888]
[1641072618166,1.85137941,178.27,178.18,17.9888]
[1641072618366,1.59137941,178.26,178.18,17.9888]
[1641072618567,1.85137941,178.26,178.18,17.9888]
[1641072620568,0.26,178.26,178.18,17.9888]
[1641072621069,3.59537941,178.28,178.18,17.9888]
[1641072621667,24.51728554,178.27,178.18,17.9888]
[1641072622068,24.77728554,178.27,178.18,17.9888]
[1641072624668,25.27728554,178.27,178.18,1.2414]
[1641072624869,25.27728554,178.27,178.14,80.3774]
[1641072625271,1.59137941,178.26,178.14,80.3774]
[1641072625472,8.4185,178.25,178.15,1.1994]
[1641072625669,8.4185,178.25,178.16,8.33]
[1641072625870,9.1785,178.25,178.16,8.33]
[1641072626071,10.76987941,178.25,178.16,8.33]
[1641072626473,10.76987941,178.25,178.16,16.7484]
[1641072627071,10.76987941,178.25,178.15,1.1994]
[1641072627772,7.44234805,178.24,178.15,1.1994]
[1641072627970,16.62144805,178.24,178.15,1.1994]
[1641072628572,16.62144805,178.24,178.13,9.6453]
[1641072628774,16.62144805,178.24,178.13,16.7496]
[1641072629476,16.62144805,178.24,178.13,8.4196]
[1641072629675,1.59137941,178.23,178.13,8.4196]
[1641072629874,8.4199,178.22,178.13,8.4196]
[1641072630077,8.6799,178.22,178.13,16.7496]
[1641072630275,9.1799,178.22,178.13,8.4196]
[1641072631077,8.4199,178.22,178.13,16.7496]
[1641072631278,8.9199,178.22,178.13,16.7496]
[1641072632377,9.1799,178.22,178.13,16.7496]
[1641072633184,9.1799,178.22,178.13,8.4196]
[1641072636585,1.59137941,178.21,178.13,8.4196]
[1641072637019,2.35137941,178.21,178.13,8.4196]
[1641072639490,2.35137941,178.21,178.13,16.7496]
[1641072642094,10.77147941,178.21,178.13,16.7496]
[1641072642296,1.59137941,178.2,178.13,8.33]
[1641072642599,1.85137941,178.2,178.12,8.4203]
[1641072642795,30.53489935,178.2,178.1,87.9465]
[1641072643197,36.38707704,178.2,178.1,87.9465]
[1641072643399,44.80767704,178.2,178.1,87.9465]
[1641072643696,1.59137941,178.19,178.1,87.9465]
[1641072643896,2.09137941,178.19,178.1,87.9465]
[1641072644096,2.35137941,178.19,178.1,87.9465]
[1641072644299,1.59137941,178.18,178.1,87.9465]
[1641072644602,10.77307941,178.18,178.1,79.6165]
[1641072645109,9.1817,178.18,178.1,79.6165]
[1641072650810,1.59137941,178.17,178.1,79.6165]
[1641072651011,10.27367941,178.17,178.1,79.6165]
[1641072651213,10.77367941,178.17,178.1,79.6165]
[1641072651414,1.59137941,178.16,178.1,79.6165]
[1641072651609,1.85137941,178.16,178.1,79.6165]
[1641072651810,2.35137941,178.16,178.1,79.6165]
[1641072652425,0.76,178.16,178.1,79.6165]
[1641072652625,8.9224,178.16,178.1,79.6165]
[1641072652826,9.1824,178.16,178.1,1.2925]
[1641072653731,10.77377941,178.16,178.1,1.2925]
[1641072654031,2.35137941,178.16,178.1,1.2925]
[1641072654928,0.76,178.16,178.1,1.2925]
[1641072655131,1.59137941,178.16,178.1,1.2925]
[1641072655331,2.35137941,178.16,178.1,1.2925]
[1641072656531,2.35137941,178.16,178.1,0.3925]
[1641072656931,0.76,178.16,178.1,0.3925]
[1641072657131,0.5,178.16,178.09,74.4201]
[1641072657330,10.77347941,178.17,178.09,74.4201]
[1641072658434,16.62654759,178.17,178.09,74.4201]
[1641072658936,1.59137941,178.16,178.09,74.4201]
[1641072659330,2.35137941,178.16,178.09,74.4201]
[1641072659934,0.76,178.16,178.09,74.4201]
[1641072660233,0.76,178.16,178.08,9.6255]
[1641072660436,15.86654759,178.17,178.07,8.4227]
[1641072660437,16.62654759,178.17,178.07,8.4227]
[1641072660635,16.62654759,178.17,178.04,9.5531]
[1641072660837,8.4234,178.14,178.04,9.5531]
[1641072661036,10.27477941,178.14,178.04,9.5531]
[1641072661237,22.85848062,178.13,178.04,9.5531]
[1641072661442,23.35848062,178.13,178.05,8.4237]
[1641072661642,24.91758062,178.13,178.05,8.4237]
[1641072662040,2.0591,178.13,178.05,8.4237]
[1641072662240,1.7991,178.13,178.05,8.4237]
[1641072662439,1.59137941,178.14,178.05,8.4237]
[1641072663039,1.59137941,178.13,178.05,8.4237]
[1641072663241,1.59137941,178.13,178.05,7.9237]
[1641072663441,2.09137941,178.13,178.05,7.9237]
[1641072663740,2.35137941,178.13,178.05,7.9237]
[1641072663942,0.76,178.13,178.05,7.9237]
[1641072664343,10.01507941,178.13,178.04,9.5531]
[1641072664542,11.55297941,178.13,178.04,1.2231]
[1641072664740,12.05297941,178.13,178.04,1.2231]
[1641072665344,12.05297941,178.13,178.03,79.307]
[1641072665543,12.05297941,178.13,178.01,84.0466]
[1641072666146,1.59137941,178.1,178.01,84.0466]
[1641072666344,10.01697941,178.1,178.01,84.0466]
[1641072666549,10.77697941,178.1,178.01,84.0466]
[1641072667143,10.77697941,178.1,178.01,75.7166]
[1641072667743,10.77697941,178.1,178.01,84.142]
[1641072669344,9.1856,178.1,178.01,84.142]
[1641072674051,15.04017644,178.1,178.01,84.142]
[1641072675354,16.63155585,178.1,178.01,84.142]
[1641072676556,16.37155585,178.1,178.01,84.142]
[1641072676861,1.59137941,178.1,178.01,92.472]
[1641072677655,0.5,178.1,178.01,92.472]
[1641072678279,2.35137941,178.11,178.01,92.472]
[1641072678678,1.2183,178.1,178.01,92.472]
[1641072678878,1.7183,178.1,178.01,92.472]
[1641072679180,1.9783,178.1,178.01,92.472]
[1641072679382,10.4034,178.1,178.01,92.472]
[1641072682885,1.59137941,178.11,178.01,92.472]
[1641072683486,1.59137941,178.11,178.01,93.89869368]
[1641072683688,1.59137941,178.11,178.02,1.292]
[1641072683887,1.59137941,178.14,178.06,8.4216]
[1641072684086,1.59137941,178.14,178.06,16.7516]
[1641072684792,1.59137941,178.15,178.06,16.7516]
[1641072685487,1.85137941,178.15,178.06,16.7516]
[1641072687591,2.35137941,178.15,178.06,16.7516]
[1641072687797,0.76,178.15,178.06,16.7516]
[1641072687995,0.5,178.15,178.06,16.7516]
[1641072688195,1.85137941,178.16,178.06,16.7516]
[1641072688396,1.09137941,178.15,178.06,16.7516]
[1641072688595,1.35137941,178.15,178.06,16.7516]
[1641072688795,1.85137941,178.15,178.06,16.7516]
[1641072691099,0.76,178.15,178.06,16.7516]
[1641072691301,40.93809394,178.18,178.06,16.7516]
[1641072692203,16.31811764,178.18,178.07,1.2487]
[1641072692404,16.31811764,178.18,178.09,8.4217]
[1641072701639,15.81811764,178.18,178.09,8.4217]
[1641072701844,2.0432,178.18,178.09,8.4217]
[1641072702045,1.7832,178.18,178.09,8.4217]
[1641072703543,2.0432,178.18,178.09,8.4217]
[1641072707146,10.4646,178.18,178.09,8.4217]
[1641072708046,10.4646,178.18,178.08,8.4222]
[1641072713054,10.2046,178.18,178.08,8.4222]
[1641072713253,1.7832,178.18,178.08,8.4222]
[1641072713654,1.2832,178.18,178.08,8.4222]
[1641072714455,1.2832,178.18,178.11,8.4207]
[1641072714656,1.7832,178.18,178.11,8.4207]
[1641072715255,1.2832,178.18,178.11,8.4207]
[1641072715861,1.7832,178.18,178.11,8.4207]
[1641072716458,1.2832,178.18,178.11,8.4207]
[1641072716859,2.0432,178.18,178.11,8.4207]
[1641072717057,2.0432,178.18,178.1,8.4213]
[1641072718361,1.5432,178.18,178.1,8.4213]
[1641072718760,2.0432,178.18,178.1,8.4213]
[1641072719360,1.5432,178.18,178.1,8.4213]
[1641072719861,2.0432,178.18,178.1,8.4213]
[1641072720370,1.5432,178.18,178.1,8.4213]
[1641072720866,2.0432,178.18,178.1,8.4213]
[1641072721866,1.5432,178.18,178.1,8.4213]
[1641072723893,2.0432,178.18,178.1,8.4213]
[1641072724492,1.5432,178.18,178.1,8.4213]
[1641072724696,2.0432,178.18,178.1,8.4213]
[1641072725693,10.4647,178.18,178.09,9.6604]
[1641072731807,2.0432,178.18,178.09,9.6604]
[1641072732106,7.89583257,178.18,178.09,9.6604]
[1641072733705,7.89583257,178.18,178.09,8.4217]
[1641072733907,17.74422625,178.18,178.08,8.4222]
[1641072735510,14.53433257,178.18,178.09,8.33]
[1641072735710,1.42669368,178.23,178.22,7.4866549]
[1641072735910,1.42669368,178.23,178.22,13.00489852]
[1641072736108,4.77316879,178.24,178.22,13.00489852]
[1641072736516,4.77316879,178.24,178.23,8.33]
[1641072736711,3.12874965,178.26,178.23,8.33]
[1641072737315,4.965e-05,178.26,178.23,16.7446]
[1641072737711,4.77316879,178.3,178.23,16.7446]
[1641072737912,3.18544303,178.3,178.23,16.7446]
[1641072738111,3.18544303,178.3,178.23,120.8746]
[1641072738311,4.303e-05,178.3,178.25,104.13]
[1641072738516,4.303e-05,178.3,178.28,8.4101]
[1641072738715,4.77316879,178.34,178.29,8.33]
[1641072738914,4.77316879,178.34,178.29,36.3608]
[1641072739118,3.18973536,178.33,178.29,36.3608]
[1641072739615,11.15263951,178.37,178.29,36.3608]
[1641072739815,11.15263951,178.37,178.33,8.4095]
[1641072740116,4.77316879,178.37,178.33,16.7395]
[1641072740321,2.5001,178.43,178.33,16.7395]
[1641072740715,3.0001,178.43,178.33,16.7395]
[1641072740916,0.5,178.43,178.33,16.7395]
[1641072741315,115.79524774,178.46,178.33,16.7395]
[1641072741517,116.05524774,178.46,178.33,16.7395]
[1641072741917,43.16664774,178.46,178.33,16.7395]
[1641072742134,13.94276879,178.46,178.33,16.7395]
[1641072743633,9.1696,178.46,178.33,16.7395]
[1641072743834,28.84151617,178.45,178.33,16.7395]
[1641072744037,29.10151617,178.45,178.33,8.33]
[1641072744237,8.4117,178.41,178.33,8.33]
[1641072744435,8.9117,178.41,178.33,8.33]
[1641072744637,9.1717,178.41,178.33,8.33]
[1641072747739,37.49465287,178.41,178.33,8.33]
[1641072750044,0.76,178.41,178.33,8.33]
[1641072750444,9.1709,178.43,178.33,8.33]
[1641072754257,0.76,178.43,178.33,8.33]
[1641072754453,0.26,178.43,178.33,8.33]
[1641072754655,0.76,178.45,178.33,8.33]
[1641072754855,0.26,178.45,178.33,8.33]
[1641072755057,1.9697,178.46,178.33,8.33]
[1641072755556,8.4105,178.44,178.33,8.33]
[1641072756056,9.1705,178.44,178.33,8.33]
[1641072756558,28.47261606,178.43,178.33,8.33]
[1641072756757,36.88351606,178.43,178.33,8.33]
[1641072756957,37.64351606,178.43,178.33,8.33]
[1641072757557,9.1709,178.43,178.33,8.33]
[1641072761593,0.76,178.43,178.33,8.33]
[1641072761990,25.03692335,178.44,178.33,8.33]
[1641072762190,24.77692335,178.44,178.33,8.33]
[1641072763494,25.03692335,178.44,178.33,8.33]
[1641072764495,0.76,178.44,178.33,8.33]
[1641072764696,0.5,178.44,178.33,16.7395]
[1641072764895,1.7097,178.46,178.33,16.7395]
[1641072765097,1.2097,178.46,178.33,16.7395]
[1641072765296,1.7097,178.46,178.33,16.7395]
[1641072765997,1.9697,178.46,178.33,16.7395]
[1641072766396,1.4697,178.46,178.33,16.7395]
[1641072766801,0.9697,178.46,178.33,16.7395]
[1641072766995,0.7097,178.46,178.33,16.7395]
[1641072767398,24.27818296,178.46,178.33,16.7395]
[1641072767597,24.53818296,178.46,178.33,16.7395]
[1641072767799,33.44768296,178.46,178.33,8.33]
[1641072769499,2.92476462,178.45,178.33,8.33]
[1641072769699,8.4102,178.44,178.33,8.33]
[1641072769902,8.9102,178.44,178.33,8.33]
[1641072770105,9.1702,178.44,178.33,8.33]
[1641072772603,0.76,178.44,178.33,8.33]
[1641072772803,0.76,178.44,178.33,16.7398]
[1641072773003,3.68476462,178.45,178.33,16.7398]
[1641072773802,12.09446462,178.45,178.33,16.7398]
[1641072774502,37.02739713,178.45,178.33,16.7398]
[1641072775909,37.02739713,178.45,178.33,8.33]
[1641072777511,12.09446462,178.45,178.33,8.33]
[1641072777708,12.09446462,178.45,178.33,7.83]
[1641072778109,3.68476462,178.45,178.33,7.83]
[1641072778609,3.68476462,178.45,178.33,16.2399]
[1641072779010,0.5,178.45,178.33,16.2399]
[1641072779410,0.7097,178.46,178.33,16.2399]
[1641072779810,0.7097,178.46,178.35,8.4089]
[1641072780013,0.7097,178.46,178.36,8.33]
[1641072780417,9.1188,178.46,178.36,8.33]
[1641072780711,9.3788,178.46,178.36,8.33]
[1641072780914,9.8788,178.46,178.36,8.33]
[1641072781513,1.4697,178.46,178.36,16.7386]
[1641072782513,0.9697,178.46,178.36,16.7386]
[1641072782814,9.8787,178.46,178.36,8.33]
[1641072783214,1.4697,178.46,178.36,8.33]
[1641072783412,0.9697,178.46,178.36,8.33]
[1641072783916,0.7097,178.46,178.36,8.33]
[1641072784713,0.7097,178.46,178.36,16.7386]
[1641072785915,0.76,178.47,178.36,16.7386]
[1641072785916,0.5,178.47,178.36,16.7386]
[1641072786317,93.4,178.5,178.36,16.7386]
[1641072787144,101.807,178.5,178.39,8.407]
[1641072787338,101.807,178.5,178.39,16.737]
[1641072787540,102.067,178.5,178.39,16.737]
[1641072787939,30.92118547,178.49,178.39,16.737]
[1641072788141,30.92118547,178.49,178.39,8.33]
[1641072788341,31.68118547,178.49,178.39,8.33]
[1641072789140,8.4091,178.46,178.39,8.33]
[1641072789541,9.1691,178.46,178.39,8.33]
[1641072791843,8.9091,178.46,178.39,8.33]
[1641072793148,9.1691,178.46,178.39,8.33]
[1641072796653,0.76,178.46,178.39,8.33]
[1641072796854,0.26,178.46,178.39,8.33]
[1641072797054,32.96168547,178.49,178.39,8.33]
[1641072798660,8.4086,178.46,178.39,8.33]
[1641072798857,0.5,178.46,178.39,8.33]
[1641072799058,0.76,178.46,178.39,8.33]
[1641072799259,29.06700062,178.45,178.39,8.33]
[1641072799459,29.56700062,178.45,178.39,8.33]
[1641072799758,0.76,178.45,178.39,8.33]
[1641072800258,2.0405,178.49,178.39,8.33]
[1641072800461,8.4094,178.45,178.39,8.33]
[1641072800861,9.1694,178.45,178.39,8.33]
[1641072803759,5.85315245,178.44,178.39,8.33]
[1641072803961,15.02265245,178.44,178.39,8.33]
[1641072812674,6.61315245,178.44,178.39,8.33]
[1641072824406,43.28165413,178.44,178.39,8.33]
[1641072824611,43.28165413,178.44,178.37,74.6592]
[1641072825508,15.02265245,178.44,178.37,74.6592]
[1641072829019,6.61315245,178.44,178.37,74.6592]
[1641072830821,6.11315245,178.44,178.37,74.6592]
[1641072831930,6.61315245,178.44,178.37,74.6592]
[1641072832528,0.76,178.44,178.37,74.6592]
[1641072832728,9.1691,178.45,178.37,74.6592]